Cogmind - Beta 15 @@@ ROGUE MODE // 2025.09.10 @ 04:40:15 Player: shapeshifter Result: Escaped! Performance ------------- Evolutions (9) 4500 Regions Visited (24) 4800 Robots Destroyed (202) 1010 Value Destroyed (11183) 11183 Prototype IDs (34) 680 Alien Tech Used (0) 0 Bonus (11696) 11696 TOTAL SCORE: 33869 Bonus ------- High Alert Combat Kills 1629 Follower Combat Kills 2818 Entered Garrisons 1000 Used RIF Installer 2500 Entered DSFs 500 Aligned with FarCom 300 Win 3000 Friendly Fire -51 Cogmind --------- Core Integrity 1152/1600 Matter 70/300 Energy 236/240 System Corruption 2% Temperature Cool (10) Movement Flying (31) Location To Epsilon Eridani Parts ------- > --- POWER (3) -------- Micro Antimatter Reactor Light Quantum Reactor > --- PROPULSION (8) --- Xenon Bombardment Thruster Xenon Bombardment Thruster Impulse Thruster Array Impulse Thruster Array Impulse Thruster Array > --- UTILITY (11) ----- Advanced Heat Sink Enhanced Optical Array Improved Signal Interpreter Advanced Signal Interpreter Advanced Melee Analysis Suite Graphene Brace Advanced Shield Generator Advanced System Shield PSU Rigger > --- WEAPON (3) ------- Tesla Bomb Launcher Tesla Bomb Launcher Plasma Cutter > --- INVENTORY (5) ---- Xenon Bombardment Thruster Large Storage Unit Cloak of Protection Advanced Force Field Peak State ------------ > --- POWER ------------ Particle Reactor Micro Antimatter Reactor > --- PROPULSION ------- Improved Thunder Leg Improved Thunder Leg Improved Thunder Leg Improved Thunder Leg Improved Thunder Leg Improved Thunder Leg > --- UTILITY ---------- High-capacity Storage Unit Enhanced Optical Array Improved Sensor Array Improved Signal Interpreter Cloak of Protection Improved Medium Armor Plating Graphene Brace Experimental Thermal Defense Suite Advanced Force Field Advanced System Shield > --- WEAPON ----------- Variable Charge Gun Dispersion Rifle KE Penetrator > --- INVENTORY -------- Micro Antimatter Reactor Micro Antimatter Reactor Shield Leg Shield Leg Shield Leg Shield Leg Biometal Leg Large Storage Unit Matter Compressor Improved Core Shielding PSU Rigger Variable Charge Gun Proton Missile Launcher Advanced Datajack Plasma Cutter [Rating: 146] Favorites ----------- Power Heavy Ion Engine Engine Heavy Ion Engine Power Core Micro Fission Core Reactor Micro Antimatter Reactor Propulsion Light Treads Treads Light Treads Leg Improved Thunder Leg Wheel Armored Wheel Hover Unit Gravmag Array Flight Unit Xenon Bombardment Thruster Utility Advanced Targeting Computer Device Graphene Brace Storage Huge Storage Unit Processor Advanced Targeting Computer Hackware Relay Coupler [Sentry] Protection Improved Core Shielding Weapon Enhanced Autogun Energy Gun Shock Rifle Energy Cannon Heavy Plasma Cannon Ballistic Gun Enhanced Autogun Ballistic Cannon Heavy Assault Cannon Launcher Proton Missile Launcher Special Weapon Advanced Remote Datajack Impact Weapon Maul Piercing Weapon Force Lance Special Melee Weapon Advanced Datajack Build | -11 -10 -10 -9 -9 -9 -8 -8 -8 -8 -8 -7 -7 -6 -6 -5 -5 -5 -4 -4 -3 -2 -1 -1 -1 ------- Run | Yrd Mat Min Mat Min Exi Min Mat Gar Mat Gar Fac Gar Fac Gar Fac Was Fac Fac DSF Res Res Acc Gar Acc Slots Evolved 18 | . . . 2 . . . 2 . . . 2 . 2 . 2 . . 2 . 2 2 2 . . Power 2 | . . . . . . . . . . . . . . . . . . . . 1 1 . . . Propulsion 6 | . . . . . . . 1 . . . . . . . . . . 2 . 1 . 2 . . Utility 9 | . . . 1 . . . 1 . . . 2 . 2 . 2 . . . . . 1 . . . Weapon 1 | . . . 1 . . . . . . . . . . . . . . . . . . . . . Parts Attached 229 | 6 2 . 26 9 . 1 19 12 1 19 3 25 8 11 22 2 1 11 9 15 8 3 9 7 Power 28 | 1 . . 4 2 . . 2 2 . 2 . 3 . 1 3 . 1 1 1 2 1 . 1 1 Engine 14 | 1 . . 4 1 . . 1 2 . 2 . 2 . 1 . . . . . . . . . . Core 7 | . . . . 1 . . 1 . . . . 1 . . 2 . 1 1 . . . . . . Reactor 7 | . . . . . . . . . . . . . . . 1 . . . 1 2 1 . 1 1 Propulsion 67 | 2 . . 5 4 . . 4 3 1 4 . 8 3 . 6 . . 4 5 6 4 . 5 3 Treads 19 | 2 . . 2 2 . . 3 3 1 4 . . . . . . . 2 . . . . . . Leg 16 | . . . . . . . . . . . . 5 . . . . . . 5 6 . . . . Wheel 15 | . . . 3 2 . . 1 . . . . 3 3 . 3 . . . . . . . . . Hover 2 | . . . . . . . . . . . . . . . 2 . . . . . . . . . Flight 15 | . . . . . . . . . . . . . . . 1 . . 2 . . 4 . 5 3 Utility 71 | 1 . . 8 2 . . 5 3 . 6 3 8 2 5 8 1 . 3 3 5 3 3 1 1 Device 19 | . . . 2 1 . . . 1 . 1 . . . 1 2 . . 1 1 3 2 2 1 1 Storage 6 | 1 . . 2 . . . 1 . . . . . . . 1 . . . . 1 . . . . Processor 7 | . . . 1 . . . 1 . . 1 . . . . 2 . . . . . 1 1 . . Hackware 16 | . . . . . . . . . . . 2 6 2 3 1 . . 2 . . . . . . Protection 23 | . . . 3 1 . . 3 2 . 4 1 2 . 1 2 1 . . 2 1 . . . . Artifact . | . . . . . . . . . . . . . . . . . . . . . . . . . Weapon 63 | 2 2 . 9 1 . 1 8 4 . 7 . 6 3 5 5 1 . 3 . 2 . . 2 2 Energy Gun 13 | . 1 . 4 . . . . . . 3 . 1 . . 2 . . 2 . . . . . . Energy Cannon 5 | . . . 1 . . . . . . 2 . . 2 . . . . . . . . . . . Ballistic Gun 24 | 2 . . 3 . . . 5 3 . . . 4 1 4 . . . . . 1 . . 1 . Ballistic Cannon 9 | . 1 . 1 1 . 1 1 . . . . . . . 3 . . . . . . . 1 . Launcher 6 | . . . . . . . 1 . . 1 . 1 . . . . . . . 1 . . . 2 Special Weapon 3 | . . . . . . . . 1 . 1 . . . 1 . . . . . . . . . . Impact Weapon 1 | . . . . . . . 1 . . . . . . . . . . . . . . . . . Slashing Weapon . | . . . . . . . . . . . . . . . . . . . . . . . . . Piercing Weapon 1 | . . . . . . . . . . . . . . . . 1 . . . . . . . . Special Melee Weapon 1 | . . . . . . . . . . . . . . . . . . 1 . . . . . . Unidentified Prototypes 9 | . . . 2 . . . 4 . . . . . 1 . . . . . . 1 . . . 1 Corrupted Parts 2 | . . . . . . . . . . . . 2 . . . . . . . . . . . . System Corruption 16 | . . . . . . . . . . . . 16 . . . . . . . . . . . . Parts Lost 88 | . 1 . 8 7 . 1 1 3 1 10 . 14 . 3 8 . . . . 23 . . 8 . Power 8 | . . . 1 1 . . . . . . . 2 . . 1 . . . . 2 . . 1 . Propulsion 33 | . . . 1 3 . . 1 1 1 3 . 8 . . 1 . . . . 10 . . 4 . Utility 17 | . . . 3 1 . . . . . 1 . . . 1 3 . . . . 6 . . 2 . Weapon 30 | . 1 . 3 2 . 1 . 2 . 6 . 4 . 2 3 . . . . 5 . . 1 . Highest Loss Streak 14 | . 1 . 3 4 . 1 1 3 1 4 . 4 . 1 3 . . . . 14 . . 6 . To Critical Strikes . | . . . . . . . . . . . . . . . . . . . . . . . . . Average Backups 19 | 2 4 8 17 17 17 19 21 22 22 22 22 21 22 21 20 12 13 11 12 13 5 4 4 4 Power . | 1 1 1 . . 2 3 2 1 . . 1 . . . . 1 . . . 1 . . . . Propulsion . | 1 2 2 1 . . . . . . . . . . . 1 2 2 2 3 4 . . . . Utility 10 | . . 3 5 6 5 7 9 14 16 17 17 14 10 11 12 5 5 5 5 4 3 3 3 3 Weapon 5 | . . 2 8 8 8 8 7 6 5 3 3 4 8 6 4 3 3 2 1 1 . . . . Tool/Special . | . . . . . . . . . . . . . . . . . . . . . . . . . Unused Backups 59 | 2 . . 7 . . . 10 5 1 2 1 7 3 4 8 1 2 . 3 2 . 1 . . Power 6 | . . . . . . . 4 . . . . . . . . . . . . 1 . 1 . . Propulsion 4 | 1 . . . . . . . . . . . . . . . . . . 3 . . . . . Utility 33 | . . . 1 . . . 3 5 1 1 1 5 2 4 6 1 2 . . 1 . . . . Weapon 16 | 1 . . 6 . . . 3 . . 1 . 2 1 . 2 . . . . . . . . . Tool/Special . | . . . . . . . . . . . . . . . . . . . . . . . . . Average Slot Usage (%) 87 | . 84 85 90 68 77 75 89 96 95 90 99 86 91 98 81 82 82 75 89 91 31 48 42 72 Engine 5 | . 14 14 10 4 . . 5 9 9 9 7 4 . 1 . . . . . . . . . . Core 2 | . . . . . 11 11 3 . . . . 1 6 4 4 5 5 5 3 . . . . . Treads 10 | . 28 28 9 9 . . 13 26 23 23 23 3 . . . . . 5 6 . . . . . Leg 1 | . . . . . . . . . . . . 3 . . . . . . 9 25 . . . . Wheel 6 | . . . 12 6 22 22 12 . . . . 7 13 20 7 . . . . . . . . . Device 3 | . . . 8 9 . . . . . . 7 . . 1 5 11 11 10 10 15 6 11 9 14 Storage 8 | . 14 14 11 11 11 11 9 9 9 9 7 7 6 6 5 5 5 5 5 4 . . . . Processor 9 | . . . 1 11 11 11 16 18 18 11 7 5 . . 4 11 11 10 10 9 10 12 16 16 Hackware 9 | . . . . . . . . . . . 14 18 44 37 31 18 17 15 11 6 4 4 4 4 Protection 8 | . . . 7 . 11 11 9 8 9 14 7 12 . 5 5 9 11 8 13 6 . . . . Energy Gun 3 | . 1 . 12 . . . . . . 11 . . . . 1 1 . 6 15 8 . . . . Energy Cannon 2 | . . . 3 4 . . . . . 4 15 4 1 2 . . . . . . . . . . Ballistic Gun 9 | . 17 14 8 . . . 12 23 27 5 . 8 18 9 1 . . . . 2 . . 2 2 Ballistic Cannon 3 | . 7 14 3 11 11 9 6 . . . . . . . 6 . . . . . . . 1 . Peak Build Rating 146 | 6 7 7 25 23 25 46 42 57 43 50 55 59 65 68 94 81 75 100 118 146 74 92 92 144 Average Rating 48 | 4 6 7 17 19 21 31 37 41 41 39 53 49 62 64 78 76 74 87 105 127 51 81 58 132 On Entrance 48 | . 6 7 7 23 19 25 19 42 43 41 50 53 56 65 60 71 75 75 99 113 23 74 92 71 Naked Turns . | . . . . . . . . . . . . . . . . . . . . . . . . . Heaviest Build 153 | 12 14 14 109 103 100 148 111 151 105 119 118 144 105 113 153 40 40 52 62 119 22 25 25 55 Greatest Support 168 | 40 40 40 40 40 20 20 66 66 64 62 60 60 36 36 44 31 31 140 140 168 29 29 30 60 Greatest Overweight (x) 31 | . . . 9 31 4 7 5 2 2 5 1 14 4 3 5 1 1 1 2 1 . . 5 1 Average Overweight (x) 2 | . . . 2 8 4 4 2 1 1 1 1 4 3 2 2 . 1 . . . . . . . Largest Inventory Capacity 25 | 8 8 8 25 25 25 25 25 25 25 25 25 25 25 25 25 15 15 15 15 20 5 5 5 5 Average Capacity 22 | 7 8 8 20 25 25 25 25 25 25 25 25 25 25 25 23 15 15 15 15 18 5 5 5 5 Most Carried 25 | 6 8 8 25 22 23 23 25 25 25 25 25 25 25 25 25 15 15 15 15 16 5 5 5 5 Average Carried 20 | 2 4 8 18 19 18 22 24 24 24 24 24 23 24 23 22 14 14 13 14 13 4 4 4 4 Final Capacity 25 | 8 8 8 25 25 25 25 25 25 25 25 25 25 25 25 15 15 15 15 15 5 5 5 5 5 Final Carried 25 | 3 8 8 21 15 23 23 25 25 25 25 25 25 25 24 15 15 15 14 15 5 5 5 5 4 Class Distribution -------------------- 28% | Gunner 11% | Mutant 7% | Tank 7% | Bothacker-Mutant 7% | Bothacker-Gunner 5% | Botlord-Tank 5% | Bothacker-Tank 4% | Scavenger-Tank 3% | Scavenger-Mutant 3% | Assassin Dominant Class ---------------- Mutant | -10/Materials Mutant | -10/Mines Scavenger-Tank | -9/Materials Mutant | -9/Mines Scavenger-Mutant | -9/Exiles Scavenger-Mutant | -8/Mines Gunner | -8/Materials Gunner | -8/Garrison Gunner | -8/Materials Bothacker-Mutant | -8/Garrison Bothacker-Gunner | -7/Factory Bothacker-Gunner | -7/Garrison Botlord-Gunner | -6/Factory Botlord-Tank | -6/Garrison Tank | -5/Factory Assassin | -5/Waste Assassin | -5/Factory Hacker-Tank | -4/Factory Hacker-Tank | -4/DSF Hacker-Skirmisher | -3/Research Hacker-Skirmisher | -2/Research Sprinter | -1/Access Mutant | -1/Garrison Scavenger-Sprinter | -1/Access Resources | -11 -10 -10 -9 -9 -9 -8 -8 -8 -8 -8 -7 -7 -6 -6 -5 -5 -5 -4 -4 -3 -2 -1 -1 -1 ----------- Run | Yrd Mat Min Mat Min Exi Min Mat Gar Mat Gar Fac Gar Fac Gar Fac Was Fac Fac DSF Res Res Acc Gar Acc Matter Collected 8321 | 215 136 . 542 371 134 13 1026 642 196 511 . 973 315 1153 1313 56 31 90 100 259 . . 245 . Remotely . | . . . . . . . . . . . . . . . . . . . . . . . . . Salvage Created 8120 | . 313 . 1374 188 . 48 1159 767 360 525 . 1087 104 423 1168 . 20 104 . 260 . . 220 . Parts 415 | . 12 . 99 7 . 1 56 44 16 21 . 53 2 19 55 . 2 3 . 13 . . 12 . Haulers Intercepted 11 | . 1 . 3 . . . 3 . 1 . . . 1 . . . . 1 . 1 . . . . Recyclers Shooed 6 | . 1 . 2 . . . 1 . . . . . 1 . . . . . . 1 . . . . Parts Field Recycled . | . . . . . . . . . . . . . . . . . . . . . . . . . Retrieved Matter . | . . . . . . . . . . . . . . . . . . . . . . . . . Parts Self-Destructed . | . . . . . . . . . . . . . . . . . . . . . . . . . Prevented . | . . . . . . . . . . . . . . . . . . . . . . . . . Kills | -11 -10 -10 -9 -9 -9 -8 -8 -8 -8 -8 -7 -7 -6 -6 -5 -5 -5 -4 -4 -3 -2 -1 -1 -1 ------- Run | Yrd Mat Min Mat Min Exi Min Mat Gar Mat Gar Fac Gar Fac Gar Fac Was Fac Fac DSF Res Res Acc Gar Acc Combat Hostiles Destroyed 165 | . 6 . 29 16 . 1 19 23 3 9 . 23 . 6 20 . . . . 3 . . 7 . Guns 71 | . 5 . 14 . . . 9 15 3 4 . 10 . 5 2 . . . . 2 . . 2 . Cannons 83 | . 1 . 11 16 . 1 10 8 . 3 . 10 . . 18 . . . . . . . 5 . AOE 6 | . . . 3 . . . . . . . . 2 . . . . . . . 1 . . . . Classes Destroyed 20 | . 3 . 8 2 . 1 2 . 1 . . 2 . . 1 . . . . . . . . . Worker 4 | . . . 2 . . . . . 1 . . . . . 1 . . . . . . . . . Builder 4 | . . . 2 . . . 1 . . . . . . . 1 . . . . . . . . . Tunneler 1 | . . . 1 . . . . . . . . . . . . . . . . . . . . . Hauler 11 | . 1 . 3 . . . 3 . 1 . . . 1 . . . . 1 . 1 . . . . Recycler 6 | . 1 . . . . . 4 . 1 . . . . . . . . . . . . . . . Mechanic 1 | . . . . . . . 1 . . . . . . . . . . . . . . . . . Operator 4 | . . . 1 . . . 1 . 1 . . . . . . . 1 . . . . . . . Watcher 13 | . . . 5 . . . 4 . . . . . . . 4 . . . . . . . . . Swarmer 35 | . . . 9 . . . 4 6 . 1 . 8 . 1 . . . . . 1 . . 5 . Cutter 3 | . . . . . . . . . . . . 3 . . . . . . . . . . . . Grunt 62 | . 6 . 9 3 . . 9 10 3 4 . 5 . 1 10 . . . . 2 . . . . Brawler 3 | . . . 1 . . . . 1 . . . . . . 1 . . . . . . . . . Duelist 4 | . . . . . . . 1 1 . 1 . 1 . . . . . . . . . . . . Protector 1 | . . . . . . . . . . . . . . . 1 . . . . . . . . . Sentry 31 | . . . 10 . . . 5 4 . 2 . 5 . 4 1 . . . . . . . . . Demolisher 3 | . . . . 2 . . . . . . . . . . 1 . . . . . . . . . Specialist 2 | . . . . . . . . . 1 . . . . . 1 . . . . . . . . . Hunter 4 | . . . . . . 1 . 1 . 1 . . . 1 . . . . . . . . . . Programmer 9 | . . . . . . . . . . . . 1 . . 6 . . . . . . . 2 . Assembled 11 | . . . . 11 . . . . . . . . . . . . . . . . . . . . Thug 1 | . . . . . . . . . . 1 . . . . . . . . . . . . . . Best Kill Streak 7 | . 3 . 5 5 . 1 4 7 2 2 . 5 1 2 6 . 1 1 . 1 . . 5 . Combat Bots Only 7 | . 2 . 4 5 . 1 4 7 1 2 . 5 . 2 4 . . . . 1 . . 5 . Max Kills in Single Turn 3 | . 1 . 3 1 . 1 2 2 2 1 . 2 1 1 2 . 1 1 . 1 . . 1 . Gunslinging 1 | . . . . . . . 1 1 . . . 1 . . . . . . . . . . . . Exploded 1 | . . . 1 . . . . . . . . 1 . . . . . . . 1 . . . . Melee . | . . . . . . . . . . . . . . . . . . . . . . . . . Uniques/NPCs Destroyed . | . . . . . . . . . . . . . . . . . . . . . . . . . Combat | -11 -10 -10 -9 -9 -9 -8 -8 -8 -8 -8 -7 -7 -6 -6 -5 -5 -5 -4 -4 -3 -2 -1 -1 -1 -------- Run | Yrd Mat Min Mat Min Exi Min Mat Gar Mat Gar Fac Gar Fac Gar Fac Was Fac Fac DSF Res Res Acc Gar Acc Hostile Shots Fired 1511 | . 35 . 170 52 . 2 49 135 30 88 . 243 9 67 108 . 2 . 8 389 2 22 100 . Missed 515 | . 7 . 54 15 . . 14 26 12 16 . 81 4 21 30 . 1 . 2 165 1 15 51 . Hits 996 | . 28 . 116 37 . 2 35 109 18 72 . 162 5 46 78 . 1 . 6 224 1 7 49 . Melee 15 | . . . . 2 . . . 3 . 4 . 6 . . . . . . . . . . . . Projectile 981 | . 28 . 116 35 . 2 35 106 18 68 . 156 5 46 78 . 1 . 6 224 1 7 49 . AOE 28 | . . . . 18 . . . . . 5 . 2 . . 2 . . . . 1 . . . . Critical Strikes 44 | . 1 . 2 . . . . 8 2 5 . 5 . 1 3 . . . . 15 . 1 1 . Actively Blocked 22 | . . . . . . . . . . 1 . 1 . . 3 . . . . 15 . 1 1 . Part Disruptions 3 | . . . . 1 . . . . . . . 1 . . . . . . . 1 . . . . Damage Taken 17577 | . 368 . 1408 1016 . 31 519 1659 336 1702 . 2060 40 810 1635 . 135 . 261 4313 30 155 1099 . Core 2421 | . 66 . 255 92 . . 46 184 . 147 . 292 . 143 225 . 13 . 4 506 . 65 383 . Absorbed by Shields 529 | . . . . . . . . . . . . . . 35 . . . . . 494 . . . . Redirected to Shielding 382 | . . . . . . . . . . 33 . 139 . 29 84 . 5 . 1 91 . . . . Ignored by Resistances 351 | . . . . . . . . . . . . . . . 33 . . . . 318 . . . . Regen/Repaired (Parts) 80 | . . . . . . . . . . . . . . . . 19 32 . 29 . . . . . Core Remaining (%) 69 | 100 . 73 . . . 13 . . . 31 . 58 . 83 . . 76 . 99 61 100 . . 72 Volleys Fired 706 | . 39 . 109 39 . 1 56 45 18 68 2 111 11 88 56 . . . 3 32 . . 27 1 Largest 3 | . 2 . 3 1 . 1 3 3 3 3 1 3 3 3 3 . . . 3 3 . . 1 1 Hottest 346 | . 85 . 158 50 . 50 75 76 76 180 90 216 90 90 225 . . . 238 346 . . 58 30 Shots Fired 1322 | . 70 . 221 39 . 2 133 117 54 143 2 173 19 123 128 . . . 9 61 . . 27 1 Gun 845 | . 64 . 155 . . . 98 94 54 122 . 87 10 65 17 . . . 9 59 . . 10 1 Cannon 390 | . 6 . 66 39 . 2 35 23 . 19 2 51 9 20 101 . . . . . . . 17 . Launcher 13 | . . . . . . . . . . 1 . 10 . . . . . . . 2 . . . . Special 74 | . . . . . . . . . . 1 . 25 . 38 10 . . . . . . . . . Kinetic 883 | . 58 . 115 39 . 2 133 117 54 47 . 92 10 65 101 . . . . 22 . . 27 1 Thermal 199 | . 12 . 27 . . . . . . 20 2 46 9 20 17 . . . 9 37 . . . . Explosive 7 | . . . . . . . . . . 1 . 6 . . . . . . . . . . . . Electromagnetic 160 | . . . 79 . . . . . . 75 . 4 . . . . . . . 2 . . . . Robot Hit Streak 25 | . 11 . 12 8 . 1 13 18 12 13 . 20 4 25 12 . . . 4 8 . . 4 4 Robot Miss Streak 10 | . 4 . 6 2 . 1 7 1 2 4 . 6 1 10 5 . . . 3 7 . . 3 . Penetration Max 2 | . . . . . . . . 1 1 . . 1 . 1 2 . . . . 1 . . . . Secondary Targets 15 | . . . 2 . . . 2 4 2 1 . 2 . 2 . . . . . . . . . . Max Gunslinging Chain 2 | . . . 1 . . . 2 1 1 1 . 1 . 1 . . . . . . . . . . Autonomous 36 | . . . . . . 1 . 7 . . . 6 . . 22 . . . . . . . . . Shots Hit Robots 787 | . 44 . 140 23 . 1 84 83 37 68 . 102 7 74 71 . 1 1 5 29 . . 16 1 Core Hits 330 | . 17 . 63 14 . 1 39 34 16 22 . 46 3 17 32 . 1 1 . 15 . . 9 . Critical Kills 19 | . 1 . . . . . . . . . . . 1 5 12 . . . . . . . . . Critical Parts Destroyed 21 | . 1 . . . . . . . . . . . . 10 9 . . . . 1 . . . . Critical Strikes 64 | . 3 . 2 3 . 1 5 5 . 1 . . 1 15 25 . 1 . . 1 . . 1 . Burn 1 | . 1 . . . . . . . . . . . . . . . . . . . . . . . Meltdown 1 | . . . . . . . . . . . . . . 1 . . . . . . . . . . Destroy 42 | . 2 . . . . . . . . . . . 1 14 24 . . . . 1 . . . . Blast 18 | . . . 2 3 . 1 5 5 . . . . . . 1 . . . . . . . 1 . Corrupt 1 | . . . . . . . . . . 1 . . . . . . . . . . . . . . Impale 1 | . . . . . . . . . . . . . . . . . 1 . . . . . . . Melee Attacks 3 | . . . . . . . 1 . . . . . . . . . 1 1 . . . . . . Impact 1 | . . . . . . . 1 . . . . . . . . . . . . . . . . . Slashing . | . . . . . . . . . . . . . . . . . . . . . . . . . Piercing 2 | . . . . . . . . . . . . . . . . . 1 1 . . . . . . Sneak Attacks 2 | . . . . . . . . . . . . . . . . . 1 1 . . . . . . Combat Hostiles . | . . . . . . . . . . . . . . . . . . . . . . . . . Follow-up Attacks . | . . . . . . . . . . . . . . . . . . . . . . . . . Damage Inflicted 20106 | . 451 . 3326 1258 . 72 2297 2382 717 1647 . 2735 151 445 2660 . 88 43 128 1004 . . 681 21 Guns 8351 | . 395 . 1351 . . . 1114 1051 717 940 . 847 151 350 239 . . . 128 819 . . 228 21 Cannons 10218 | . 56 . 1695 1258 . 72 1183 1331 . 514 . 1140 . 95 2421 . . . . . . . 453 . Explosions 1341 | . . . 280 . . . . . . 193 . 748 . . . . . . . 120 . . . . Melee 131 | . . . . . . . . . . . . . . . . . 88 43 . . . . . . Ramming 65 | . . . . . . . . . . . . . . . . . . . . 65 . . . . Kinetic 14611 | . 350 . 1760 1258 . 72 2297 2382 717 522 . 1259 151 350 2421 . . . . 370 . . 681 21 Thermal 3068 | . 101 . 609 . . . . . . 628 . 819 . 95 239 . . . 128 449 . . . . Explosive 403 | . . . . . . . . . . 79 . 324 . . . . . . . . . . . . Electromagnetic 1828 | . . . 957 . . . . . . 418 . 333 . . . . . . . 120 . . . . Impact . | . . . . . . . . . . . . . . . . . . . . . . . . . Slashing . | . . . . . . . . . . . . . . . . . . . . . . . . . Piercing 131 | . . . . . . . . . . . . . . . . . 88 43 . . . . . . Highest Corruption 24 | . . . . . . . . . . . . 19 3 3 5 5 5 . . 24 . . 2 2 Average Corruption 5 | . . . . . . . . . . . . 10 3 3 4 5 5 . . 10 . . 1 2 Corruption Purged . | . . . . . . . . . . . . . . . . . . . . . . . . . Corruption Blocked . | . . . . . . . . . . . . . . . . . . . . . . . . . Effects 129 | . . . . . . . . . . . . 43 7 25 23 10 9 . . 9 . . 1 2 Message Errors 34 | . . . . . . . . . . . . 9 1 5 8 3 4 . . 1 . . 1 2 Matter Fused 30 | . . . . . . . . . . . . 8 1 7 7 4 2 . . 1 . . . . Heat Flow Errors 17 | . . . . . . . . . . . . 5 1 6 1 2 . . . 2 . . . . Energy Discharges 12 | . . . . . . . . . . . . 5 1 2 2 1 1 . . . . . . . Parts Rejected 1 | . . . . . . . . . . . . . . . . . . . . 1 . . . . Parts Fused 2 | . . . . . . . . . . . . 1 . . 1 . . . . . . . . . Data Loss (minor) 12 | . . . . . . . . . . . . 7 1 1 2 . . . . 1 . . . . Data Loss (major) 5 | . . . . . . . . . . . . 1 . 2 2 . . . . . . . . . Misfires 8 | . . . . . . . . . . . . 4 2 2 . . . . . . . . . . Alerts 3 | . . . . . . . . . . . . 1 . . . . 2 . . . . . . . Misdirections 3 | . . . . . . . . . . . . . . . . . . . . 3 . . . . Weapon Failures 2 | . . . . . . . . . . . . 2 . . . . . . . . . . . . Overload Shots 7 | . . . . . . . . . . . . . . . 3 . . . . 4 . . . . Effects 1 | . . . . . . . . . . . . . . . . . . . . 1 . . . . Energy Bleed 1 | . . . . . . . . . . . . . . . . . . . . 1 . . . . Overflow Damage 878 | . . . 157 103 . . 203 92 . 22 . 40 . . 245 . . . . . . . 16 . Projectiles 814 | . . . 145 103 . . 203 92 . 10 . . . . 245 . . . . . . . 16 . Explosions 64 | . . . 12 . . . . . . 12 . 40 . . . . . . . . . . . . Melee . | . . . . . . . . . . . . . . . . . . . . . . . . . Knockbacks 43 | . 1 . 6 9 . . . 3 . . . 2 . . 18 . . . . . . . 4 . Impact . | . . . . . . . . . . . . . . . . . . . . . . . . . Kinetic 42 | . 1 . 6 8 . . . 3 . . . 2 . . 18 . . . . . . . 4 . Secondary 1 | . . . . 1 . . . . . . . . . . . . . . . . . . . . Self-Inflicted Damage 321 | . . . 90 . . . . 27 . 107 . 83 . . . . . . . 14 . . . . Shots 13 | . . . 3 . . . . 1 . 2 . 6 . . . . . . . 1 . . . . Rammed . | . . . . . . . . . . . . . . . . . . . . . . . . . Targets Rammed 7 | . . . . . . . . . . . . . . . . . . . . 7 . . . . Kicked 7 | . . . . . . . . . . . . . . . . . . . . 7 . . . . Crushed . | . . . . . . . . . . . . . . . . . . . . . . . . . Highest Temperature 447 | . 247 . 99 . . 14 152 409 73 342 72 324 160 257 320 158 . . 447 318 . . . . Average Temperature 81 | . 73 . 23 . . 10 36 128 28 92 41 90 45 55 83 69 . . 156 129 . . . . Received Heat Transfer 3642 | . 225 . 405 74 . . 234 630 171 414 . 441 12 132 372 . . . . 442 9 54 27 . Effects 7 | . . . . . . . . 4 . . . 1 . . . . . . 1 1 . . . . Shutdowns 1 | . . . . . . . . 1 . . . . . . . . . . . . . . . . Energy Bleed 2 | . . . . . . . . . . . . . . . . . . . 1 1 . . . . Interference 3 | . . . . . . . . 3 . . . . . . . . . . . . . . . . Damage (minor) 1 | . . . . . . . . . . . . 1 . . . . . . . . . . . . Siege Activations . | . . . . . . . . . . . . . . . . . . . . . . . . . Martial Activations . | . . . . . . . . . . . . . . . . . . . . . . . . . Shielding Activations . | . . . . . . . . . . . . . . . . . . . . . . . . . Robots Disrupted . | . . . . . . . . . . . . . . . . . . . . . . . . . Combat Hostiles . | . . . . . . . . . . . . . . . . . . . . . . . . . Robots Corrupted 4 | . . . 1 . . . . . . 2 . 1 . . . . . . . . . . . . Combat Hostiles 4 | . . . 1 . . . . . . 2 . 1 . . . . . . . . . . . . Parts Fried 10 | . . . 5 . . . . . . 4 . 1 . . . . . . . . . . . . Impact Corruptions . | . . . . . . . . . . . . . . . . . . . . . . . . . Robots Melted 1 | . . . . . . . . . . . . . . 1 . . . . . . . . . . Combat Hostiles 1 | . . . . . . . . . . . . . . 1 . . . . . . . . . . Parts Melted 7 | . . . 1 . . . . . . 1 . 1 . . 1 . . . . 1 . . 2 . Heat Transferred 4781 | . 296 . 1042 . . . . . . 950 . 1209 . 100 333 . . . 185 666 . . . . Parts Sabotaged . | . . . . . . . . . . . . . . . . . . . . . . . . . Parts Stolen . | . . . . . . . . . . . . . . . . . . . . . . . . . Parts Stripped . | . . . . . . . . . . . . . . . . . . . . . . . . . Power Chain Reactions 8 | . . . 6 . . . . . . 1 . 1 . . . . . . . . . . . . Alert | -11 -10 -10 -9 -9 -9 -8 -8 -8 -8 -8 -7 -7 -6 -6 -5 -5 -5 -4 -4 -3 -2 -1 -1 -1 ------- Run | Yrd Mat Min Mat Min Exi Min Mat Gar Mat Gar Fac Gar Fac Gar Fac Was Fac Fac DSF Res Res Acc Gar Acc Maximum Alert Level 5 | . . . 1 1 . . . 4 3 4 3 5 3 5 3 1 1 . 2 1 . . 1 . Low Security (%) 35 | 100 100 100 66 99 . 100 100 4 . . . . . . . 13 60 100 25 80 100 100 96 100 Level 1 8 | . . . 33 . . . . 22 . . . . . . . 86 39 . 13 19 . . 3 . Level 2 16 | . . . . . . . . 41 83 17 19 25 . 27 . . . . 60 . . . . . Level 3 26 | . . . . . . . . 25 16 37 80 34 100 31 100 . . . . . . . . . Level 4 10 | . . . . . . . . 6 . 44 . 33 . 13 . . . . . . . . . . Level 5 2 | . . . . . . . . . . . . 6 . 26 . . . . . . . . . . High Security . | . . . . . . . . . . . . . . . . . . . . . . . . . Max Security . | . . . . . . . . . . . . . . . . . . . . . . . . . Sterilizations 1 | . . . . . . . . . . . . . . . . . . . 1 . . . . . Peak Influence 1845 | . 62 . 387 207 . 30 171 1105 871 1524 800 1783 935 1845 968 324 297 114 420 244 . . 200 120 Initial 968 | . . . . 144 . . 7 99 538 538 800 470 935 552 968 324 128 110 37 236 . . . 120 Average 552 | . 17 . 159 42 . 7 57 620 624 1004 736 986 849 1122 889 253 169 87 304 116 . . 103 86 Influence Increases 10356 | . 176 . 987 138 . 31 688 1096 749 1146 2 1613 52 1443 802 . 359 14 503 276 . . 266 15 Destroy 0b10 Robot/C 4720 | . 120 . 580 100 . 20 380 620 440 440 . 580 20 420 500 . 100 . 180 80 . . 140 . Destroy 0b10 Robot/NC 315 | . 10 . 70 . . . 70 . 50 10 . 10 5 5 50 . 5 5 15 10 . . . . Destroy Leader 804 | . 22 . 186 20 . 10 94 50 118 40 . 30 12 30 78 . 30 2 30 22 . . 30 . Allied During Kill 1067 | . . . . . . . . 89 81 40 . 25 2 398 91 . 135 7 192 7 . . . . Successful Hack 159 | . 9 . 16 . . . 39 . . . . 14 6 42 5 . 16 . . 12 . . . . Disable Machine 345 | . 15 . 60 . . . 30 15 45 45 . 30 . 45 30 . . . 15 . . . . 15 Anti-Garrison Action 1950 | . . . . . . . . 250 . 500 . 800 . 400 . . . . . . . . . . Destroy Structure 591 | . . . 30 18 . 1 15 42 15 71 2 124 7 103 18 . 58 . 56 10 . . 21 . Partial Spotted 15 | . . . . . . . . . . . . . . . . . . . . . . . 15 . Lose Combat Pursuer 390 | . . . 45 . . . 60 30 . . . . . . 30 . 15 . 15 135 . . 60 . Influence Decreases 10291 | . 176 . 615 510 . 11 555 144 1025 451 854 502 1046 387 1719 744 316 187 137 696 . . 66 150 Entered New Map 5099 | . . . . 228 . . 13 54 567 291 724 202 848 237 877 604 56 117 17 184 . . . 80 Time Decay 3555 | . 176 . 485 264 . 10 532 . 428 . 130 . 198 . 562 140 180 70 . 310 . . . 70 Lost Part 727 | . . . 80 18 . 1 10 30 10 100 . 140 . 30 80 . . . . 162 . . 66 . Lost Ally 860 | . . . . . . . . 60 20 60 . 160 . 120 200 . 80 . 120 40 . . . . Purge Threat 50 | . . . 50 . . . . . . . . . . . . . . . . . . . . . Squads Dispatched 28 | . . . 3 . . . . . 5 . . . 1 . 7 . 2 . 2 7 . . . 1 Investigation 3 | . . . 2 . . . . . 1 . . . . . . . . . . . . . . . Extermination 6 | . . . . . . . . . . . . . . . 3 . . . . 2 . . . 1 Reinforcement 11 | . . . 1 . . . . . 3 . . . . . 1 . 2 . 2 2 . . . . Assault 6 | . . . . . . . . . 1 . . . . . 3 . . . . 2 . . . . Garrison 2 | . . . . . . . . . . . . . 1 . . . . . . 1 . . . . Intercept . | . . . . . . . . . . . . . . . . . . . . . . . . . Searches Triggered . | . . . . . . . . . . . . . . . . . . . . . . . . . Construction Impeded 2 | . . . 1 . . . . . . . . . . . . . . . . 1 . . . . Haulers Reinforced . | . . . . . . . . . . . . . . . . . . . . . . . . . Active Scanning Responses . | . . . . . . . . . . . . . . . . . . . . . . . . . Cargo Convoy Interrupts . | . . . . . . . . . . . . . . . . . . . . . . . . . Stealth | -11 -10 -10 -9 -9 -9 -8 -8 -8 -8 -8 -7 -7 -6 -6 -5 -5 -5 -4 -4 -3 -2 -1 -1 -1 --------- Run | Yrd Mat Min Mat Min Exi Min Mat Gar Mat Gar Fac Gar Fac Gar Fac Was Fac Fac DSF Res Res Acc Gar Acc Distress Signals 11 | . . . 5 . . . 2 . 1 . . . . 2 . . . . . . 1 . . . Communications Jammed 118 | . . . . . . . . . . . . . . . 118 . . . . . . . . . Distress Signals 118 | . . . . . . . . . . . . . . . 118 . . . . . . . . . Times Spotted 347 | . 8 . 42 15 . 1 28 32 19 23 . 34 1 30 43 . 6 . 6 29 2 3 23 2 Peak Tracking Total 24 | . 2 . 7 3 . 1 3 7 5 4 . 4 1 4 7 . 3 . 4 11 2 3 24 2 Tactical Retreats 17 | . . . 1 . . . 3 2 . . . . . . 2 . 1 . 1 5 . . 2 . Traps | -11 -10 -10 -9 -9 -9 -8 -8 -8 -8 -8 -7 -7 -6 -6 -5 -5 -5 -4 -4 -3 -2 -1 -1 -1 ------- Run | Yrd Mat Min Mat Min Exi Min Mat Gar Mat Gar Fac Gar Fac Gar Fac Was Fac Fac DSF Res Res Acc Gar Acc Traps Triggered 40 | . . . . . . . . 6 2 8 . 8 . 10 2 . 1 . . 1 . 1 1 . Indirectly . | . . . . . . . . . . . . . . . . . . . . . . . . . Trap Hack Attempts . | . . . . . . . . . . . . . . . . . . . . . . . . . Triggered . | . . . . . . . . . . . . . . . . . . . . . . . . . Disarmed . | . . . . . . . . . . . . . . . . . . . . . . . . . Reprogrammed . | . . . . . . . . . . . . . . . . . . . . . . . . . Reused . | . . . . . . . . . . . . . . . . . . . . . . . . . Traps Extracted . | . . . . . . . . . . . . . . . . . . . . . . . . . Installed . | . . . . . . . . . . . . . . . . . . . . . . . . . Triggered . | . . . . . . . . . . . . . . . . . . . . . . . . . Objects Rigged 1 | . . . . . . . . . . . . . . . . . . . . . . 1 . . Time Bombs Activated 1 | . . . . . . . . . . . . . . . . . . . . . . 1 . . Exploded 1 | . . . . . . . . . . . . . . . . . . . . . . 1 . . Machines | -11 -10 -10 -9 -9 -9 -8 -8 -8 -8 -8 -7 -7 -6 -6 -5 -5 -5 -4 -4 -3 -2 -1 -1 -1 ---------- Run | Yrd Mat Min Mat Min Exi Min Mat Gar Mat Gar Fac Gar Fac Gar Fac Was Fac Fac DSF Res Res Acc Gar Acc Machines Disabled 50 | . 1 . 4 . . . 2 5 3 8 . 10 . 13 2 . . . 1 . . . . 1 Max in Single Turn 2 | . 1 . 1 . . . 1 2 . 2 . 2 . 2 1 . . . . . . . . 1 Garrison Access 1 | . . . . . . . . . . . . . . . . . . . . 1 . . . . Garrison Relay 14 | . . . . . . . . 2 . 3 . 4 . 5 . . . . . . . . . . Phase Generator 4 | . . . . . . . . 1 . 1 . 1 . 1 . . . . . . . . . . Energy Cycler 1 | . . . . . . . . . . . . . . . . . . . . . . 1 . . Machines Repaired . | . . . . . . . . . . . . . . . . . . . . . . . . . Machines Dismantled 4 | . . . . . . . . 1 . 1 . 1 . . . . . . . . . . . 1 Machines Sabotaged . | . . . . . . . . . . . . . . . . . . . . . . . . . Overloaded Fab Kills . | . . . . . . . . . . . . . . . . . . . . . . . . . Hacking | -11 -10 -10 -9 -9 -9 -8 -8 -8 -8 -8 -7 -7 -6 -6 -5 -5 -5 -4 -4 -3 -2 -1 -1 -1 --------- Run | Yrd Mat Min Mat Min Exi Min Mat Gar Mat Gar Fac Gar Fac Gar Fac Was Fac Fac DSF Res Res Acc Gar Acc Machines Accessed 58 | . 3 . 8 . 2 . 7 4 5 2 1 3 3 3 5 . 2 1 . 5 2 2 . . Terminals 45 | . 2 . 8 . . . 6 4 3 2 . 3 1 3 3 . 1 1 . 5 2 1 . . Fabricators 2 | . . . . . . . . . . . . . 1 . 1 . . . . . . . . . Repair Stations . | . . . . . . . . . . . . . . . . . . . . . . . . . Recycling Units 3 | . 1 . . . . . . . 1 . . . . . 1 . . . . . . . . . Scanalyzers 1 | . . . . . . . . . . . . . . . . . 1 . . . . . . . Garrison Access 5 | . . . . . . . 1 . 1 . 1 . 1 . . . . . . . . 1 . . Total Hacks 154 | . 6 . 27 . 2 . 36 5 9 4 1 7 7 4 15 . 8 1 . 13 6 3 . . Successful 74 | . 2 . 14 . 2 . 21 2 6 . 1 1 4 3 6 . 4 1 . 3 3 1 . . Failed 80 | . 4 . 13 . . . 15 3 3 4 . 6 3 1 9 . 4 . . 10 3 2 . . Catastrophic 17 | . 1 . 1 . . . . 2 . 1 . 2 1 1 3 . 1 . . 3 1 . . . Database Lockouts . | . . . . . . . . . . . . . . . . . . . . . . . . . Manual 86 | . 4 . 19 . 1 . 22 . 9 . . . 3 . 8 . 5 . . 10 5 . . . Terminals 136 | . 4 . 27 . . . 35 5 7 4 . 7 5 4 10 . 6 1 . 13 6 2 . . Fabricators 3 | . . . . . . . . . . . . . 1 . 2 . . . . . . . . . Repair Stations . | . . . . . . . . . . . . . . . . . . . . . . . . . Recycling Units 6 | . 2 . . . . . . . 1 . . . . . 3 . . . . . . . . . Scanalyzers 2 | . . . . . . . . . . . . . . . . . 2 . . . . . . . Garrison Access 5 | . . . . . . . 1 . 1 . 1 . 1 . . . . . . . . 1 . . Terminal Hacks 33 | . . . 6 . 2 . 12 2 . . . 1 1 3 1 . 2 1 . 1 1 . . . Record 5 | . . . . . 1 . 3 . . . . . . . . . 1 . . . . . . . Part Schematic 1 | . . . 1 . . . . . . . . . . . . . . . . . . . . . Prototype ID Bank 1 | . . . . . . . 1 . . . . . . . . . . . . . . . . . Open DSF 2 | . . . . . . . . . . . . . . . . . . 1 . . 1 . . . Level Access Points 1 | . . . . . . . . . . . . . . . . . . . . 1 . . . . Branch Access Points 2 | . . . 1 . . . 1 . . . . . . . . . . . . . . . . . Emergency Access Points 2 | . . . . . . . . . . . . 1 . 1 . . . . . . . . . . Alert Level 3 | . . . . . . . 3 . . . . . . . . . . . . . . . . . Unreport Threat 1 | . . . 1 . . . . . . . . . . . . . . . . . . . . . Transport Status 1 | . . . . . . . 1 . . . . . . . . . . . . . . . . . Hauler Manifests 1 | . . . 1 . . . . . . . . . . . . . . . . . . . . . Registered Components 3 | . . . . . . . 1 . . . . . 1 . . . 1 . . . . . . . Zone Layout 5 | . . . 2 . . . 2 . . . . . . . 1 . . . . . . . . . Garrison Registry 2 | . . . . . . . . 1 . . . . . 1 . . . . . . . . . . Patrol Navigation 1 | . . . . . . . . . . . . . . 1 . . . . . . . . . . Security Stations 1 | . . . . . . . . 1 . . . . . . . . . . . . . . . . Proto ID Catalog 1 | . . . . . 1 . . . . . . . . . . . . . . . . . . . Fabricator Hacks . | . . . . . . . . . . . . . . . . . . . . . . . . . Repair Station Hacks . | . . . . . . . . . . . . . . . . . . . . . . . . . Recycling Unit Hacks 2 | . . . . . . . . . 1 . . . . . 1 . . . . . . . . . Retrieve Components 2 | . . . . . . . . . 1 . . . . . 1 . . . . . . . . . Scanalyzer . | . . . . . . . . . . . . . . . . . . . . . . . . . Garrison Access Hacks 5 | . . . . . . . 1 . 1 . 1 . 1 . . . . . . . . 1 . . Unlock Access 5 | . . . . . . . 1 . 1 . 1 . 1 . . . . . . . . 1 . . Unauthorized Hacks 34 | . 2 . 8 . . . 8 . 4 . . . 2 . 4 . 2 . . 2 2 . . . Terminals 34 | . 2 . 8 . . . 8 . 4 . . . 2 . 4 . 2 . . 2 2 . . . Botnet 17 | . 2 . 3 . . . 3 . 2 . . . 1 . 2 . 1 . . 2 1 . . . Skim 17 | . . . 5 . . . 5 . 2 . . . 1 . 2 . 1 . . . 1 . . . Fabricators . | . . . . . . . . . . . . . . . . . . . . . . . . . Repair Stations . | . . . . . . . . . . . . . . . . . . . . . . . . . Recycling Units . | . . . . . . . . . . . . . . . . . . . . . . . . . Scanalyzers . | . . . . . . . . . . . . . . . . . . . . . . . . . Garrison Access . | . . . . . . . . . . . . . . . . . . . . . . . . . Data Cores Recovered 4 | . . . 1 . . . 1 . . . . . . . 1 . . . . 1 . . . . Used 1 | . . . . . . . . . . . . . . . . . . . . 1 . . . . Hacking Detections 46 | . 3 . 4 . . . 6 4 3 2 1 3 3 2 5 . 1 1 . 5 1 2 . . Full Trace Events 1 | . . . . . . . . . . . . . . 1 . . . . . . . . . . Feedback Events . | . . . . . . . . . . . . . . . . . . . . . . . . . Feedback Blocked . | . . . . . . . . . . . . . . . . . . . . . . . . . Robot Schematics Acquired . | . . . . . . . . . . . . . . . . . . . . . . . . . Robots Built . | . . . . . . . . . . . . . . . . . . . . . . . . . Authchips . | . . . . . . . . . . . . . . . . . . . . . . . . . Time . | . . . . . . . . . . . . . . . . . . . . . . . . . Total Robot Build Rating . | . . . . . . . . . . . . . . . . . . . . . . . . . Part Schematics Acquired 1 | . . . 1 . . . . . . . . . . . . . . . . . . . . . Parts Built . | . . . . . . . . . . . . . . . . . . . . . . . . . Authchips . | . . . . . . . . . . . . . . . . . . . . . . . . . Time . | . . . . . . . . . . . . . . . . . . . . . . . . . Total Part Build Rating . | . . . . . . . . . . . . . . . . . . . . . . . . . Parts Repaired . | . . . . . . . . . . . . . . . . . . . . . . . . . Time . | . . . . . . . . . . . . . . . . . . . . . . . . . Parts Recycled . | . . . . . . . . . . . . . . . . . . . . . . . . . Recycled Matter . | . . . . . . . . . . . . . . . . . . . . . . . . . Retrieved Matter . | . . . . . . . . . . . . . . . . . . . . . . . . . Retrieved Components 2 | . . . . . . . . . 2 . . . . . . . . . . . . . . . Parts Scanalyzed . | . . . . . . . . . . . . . . . . . . . . . . . . . Part Schematics Acquired . | . . . . . . . . . . . . . . . . . . . . . . . . . Parts Damaged . | . . . . . . . . . . . . . . . . . . . . . . . . . Bothacking | -11 -10 -10 -9 -9 -9 -8 -8 -8 -8 -8 -7 -7 -6 -6 -5 -5 -5 -4 -4 -3 -2 -1 -1 -1 ------------ Run | Yrd Mat Min Mat Min Exi Min Mat Gar Mat Gar Fac Gar Fac Gar Fac Was Fac Fac DSF Res Res Acc Gar Acc Used RIF Installer 5 | . . . . . . . . 1 . 2 . 1 . 1 . . . . . . . . . . Code Merge 1 | . . . . . . . . . . . . 1 . . . . . . . . . . . . Signal Jammer 1 | . . . . . . . . . . 1 . . . . . . . . . . . . . . Robot Detection 1 | . . . . . . . . . . 1 . . . . . . . . . . . . . . Watcher Feeds 1 | . . . . . . . . . . . . . . 1 . . . . . . . . . . Robots Hacked 24 | . . . . . . . . . . . . 8 . 11 5 . . . . . . . . . Non-combat . | . . . . . . . . . . . . . . . . . . . . . . . . . Combat 24 | . . . . . . . . . . . . 8 . 11 5 . . . . . . . . . Robot Hacks Applied 26 | . . . . . . . . . . . . 8 . 12 6 . . . . . . . . . parse_system 2 | . . . . . . . . . . . . 1 . 1 . . . . . . . . . . find_shortcuts 1 | . . . . . . . . . . . . 1 . . . . . . . . . . . . find_garrison 1 | . . . . . . . . . . . . . . . 1 . . . . . . . . . overload_power 1 | . . . . . . . . . . . . 1 . . . . . . . . . . . . amplify_resonance 6 | . . . . . . . . . . . . . . 3 3 . . . . . . . . . disable_weapons 1 | . . . . . . . . . . . . 1 . . . . . . . . . . . . formatsys_high 14 | . . . . . . . . . . . . 4 . 8 2 . . . . . . . . . Relay Couplers Released 67 | . . . . . . . . 10 . 11 . 21 . 22 . . . . . 3 . . . . Machine Destruction 64 | . . . . . . . . 10 . 11 . 18 . 22 . . . . . 3 . . . . Programmers 3 | . . . . . . . . . . . . 3 . . . . . . . . . . . . Attached 12 | . . . . . . . . . . . 2 6 1 3 . . . . . . . . . . Merged Code Value 201 | . . . . . . . . . . . . 87 7 107 . . . . . . . . . . Fabnet Peak Effective % . | . . . . . . . . . . . . . . . . . . . . . . . . . Robots Rewired 27 | . . . . . . . . 9 . 4 . 4 . 10 . . . . . . . . . . Allies Hacked . | . . . . . . . . . . . . . . . . . . . . . . . . . Hacks Repelled . | . . . . . . . . . . . . . . . . . . . . . . . . . Allies | -11 -10 -10 -9 -9 -9 -8 -8 -8 -8 -8 -7 -7 -6 -6 -5 -5 -5 -4 -4 -3 -2 -1 -1 -1 -------- Run | Yrd Mat Min Mat Min Exi Min Mat Gar Mat Gar Fac Gar Fac Gar Fac Was Fac Fac DSF Res Res Acc Gar Acc Total Allies 63 | . . . . 1 . . . 10 . 4 . 8 . 18 2 20 . . . . . . . . Largest Group 20 | . . . . 1 . . . 10 3 2 1 5 1 17 12 20 20 15 15 2 . . . . Highest-Rated Group 823 | . . . . 31 . . . 305 197 149 16 123 20 495 389 823 823 623 622 90 . . . . Highest-Rated Ally 149 | . . . . 31 . . . 149 149 149 16 32 20 41 46 50 50 50 50 46 . . . . Total Orders . | . . . . . . . . . . . . . . . . . . . . . . . . . Ally Attacks 382 | . . . . 1 . . . 28 51 37 . 42 1 73 37 . 28 . 73 11 . . . . Total Damage 11715 | . . . . 21 . . . 399 1773 1923 . 744 36 2016 1298 . 889 . 2381 235 . . . . Kills 98 | . . . . . . . . 9 25 13 . 6 1 16 11 . 5 . 10 2 . . . . Allies Corrupted . | . . . . . . . . . . . . . . . . . . . . . . . . . Allies Melted 1 | . . . . . . . . . . . . . . . 1 . . . . . . . . . Intel | -11 -10 -10 -9 -9 -9 -8 -8 -8 -8 -8 -7 -7 -6 -6 -5 -5 -5 -4 -4 -3 -2 -1 -1 -1 ------- Run | Yrd Mat Min Mat Min Exi Min Mat Gar Mat Gar Fac Gar Fac Gar Fac Was Fac Fac DSF Res Res Acc Gar Acc Active Infowar (turns) 2550 | . . . . . . . . . . . . . . . 297 299 361 154 287 712 55 100 133 152 Optics 2550 | . . . . . . . . . . . . . . . 297 299 361 154 287 712 55 100 133 152 Sensors 1795 | . . . . . . . . . . . . . . . 46 299 361 154 287 613 . 21 14 . Triangulation 2 | . . . . . . . . . . . . . . . . . . . 2 . . . . . Cloaking 412 | . . . . . . . . . . . . . . . . . . 3 . 409 . . . . Robot Analysis Total . | . . . . . . . . . . . . . . . . . . . . . . . . . Derelict Logs Recovered 1 | . . . . 1 . . . . . . . . . . . . . . . . . . . . Drone Launches . | . . . . . . . . . . . . . . . . . . . . . . . . . Drone Recoveries . | . . . . . . . . . . . . . . . . . . . . . . . . . Exploration | -11 -10 -10 -9 -9 -9 -8 -8 -8 -8 -8 -7 -7 -6 -6 -5 -5 -5 -4 -4 -3 -2 -1 -1 -1 ------------- Run | Yrd Mat Min Mat Min Exi Min Mat Gar Mat Gar Fac Gar Fac Gar Fac Was Fac Fac DSF Res Res Acc Gar Acc Turns Passed 19456 | 85 552 77 1879 1131 586 49 2031 1617 1052 2175 273 2439 411 1167 1679 299 361 154 287 712 55 100 133 152 Spaces Moved 9639 | 50 279 36 971 326 415 30 1005 551 382 704 110 933 240 673 980 210 256 123 158 461 102 257 108 279 Core 65 | 11 . . . 12 . . . . . . . . . . . . . . . 13 15 . 14 . Treads 3199 | 39 279 36 405 78 . . 354 551 382 704 110 141 . . . . . 37 83 . . . . . Legs 610 | . . . . . . . . . . . . 87 . . . . . . 75 448 . . . . Wheels 4321 | . . . 566 236 415 30 651 . . . . 705 240 673 805 . . . . . . . . . Hover 535 | . . . . . . . . . . . . . . . 69 210 256 . . . . . . . Flight 909 | . . . . . . . . . . . . . . . 106 . . 86 . . 87 257 94 279 Fastest Speed 25 | 50 160 160 135 140 140 140 125 225 230 235 240 120 120 120 56 56 111 34 120 50 31 31 28 25 Average Speed 166 | 135 160 160 151 312 140 152 169 231 259 260 240 214 147 122 147 103 111 79 152 119 40 31 54 30 Slowest Speed 1600 | 160 160 160 320 1600 140 185 225 305 312 560 240 1100 150 135 200 111 111 180 220 210 50 31 300 110 Overloaded Moves . | . . . . . . . . . . . . . . . . . . . . . . . . . Propulsion Burnouts . | . . . . . . . . . . . . . . . . . . . . . . . . . Robots Hopped 13 | . . . . . . . . . . . . . . . . . . . . . . 5 3 5 Potential Cave-ins 2 | . . . . . . . . . . . . . 2 . . . . . . . . . . . Cave-ins Triggered . | . . . . . . . . . . . . . . . . . . . . . . . . . Exploration Rate (%) 38 | 5 51 12 86 43 70 10 69 58 46 64 3 81 5 83 22 87 9 3 94 17 4 7 31 8 Regions Visited 24 Branch Regions 4 Pre-discovered Areas 5 | . . . 2 . 1 . 2 . . . . . . . . . . . . . . . . . Known Exits Taken 11 | . . . 1 . . 1 1 . 1 . 1 . 1 . . . 1 1 . 1 1 1 . . Unknown Exits Taken 5 | 1 1 1 . 1 1 . . . . . . . . . . . . . . . . . . . Scrap Searched . | . . . . . . . . . . . . . . . . . . . . . . . . . Spaces Dug 19 | . . . . . . . . . . . 2 3 7 . 3 . . . . 4 . . . . Terrain Destroyed 506 | . . . 25 24 . 1 13 89 . 82 2 160 9 79 11 . . . . 4 . . 7 . Melee . | . . . . . . . . . . . . . . . . . . . . . . . . . Projectile 96 | . . . 8 24 . 1 13 5 . 1 2 10 9 2 10 . . . . 4 . . 7 . AOE 406 | . . . 17 . . . . 84 . 81 . 150 . 74 . . . . . . . . . . Terrain Rammed . | . . . . . . . . . . . . . . . . . . . . . . . . . Walls Destroyed . | . . . . . . . . . . . . . . . . . . . . . . . . . Machines Disabled . | . . . . . . . . . . . . . . . . . . . . . . . . . Actions | -11 -10 -10 -9 -9 -9 -8 -8 -8 -8 -8 -7 -7 -6 -6 -5 -5 -5 -4 -4 -3 -2 -1 -1 -1 --------- Run | Yrd Mat Min Mat Min Exi Min Mat Gar Mat Gar Fac Gar Fac Gar Fac Was Fac Fac DSF Res Res Acc Gar Acc Total 11927 | 68 325 56 1198 381 420 32 1217 797 409 911 118 1230 284 930 1140 293 331 184 201 566 112 271 148 305 Wait 612 | . . 21 27 1 . . 75 85 5 42 . 43 8 77 26 74 67 18 4 32 1 4 2 . Move 9593 | 49 278 35 970 325 414 29 1004 550 382 703 109 932 239 672 980 209 255 122 157 460 101 247 103 268 Hop 11 | . . . . . . . . . . . . . . . . . . . . . . 5 1 5 Pick Up 227 | 11 6 . 34 4 6 . 30 12 2 17 3 26 8 14 18 2 3 7 12 6 1 4 . 1 Fast Attach 76 | . . . 8 . . . 3 3 1 4 . 11 1 3 5 3 . 3 7 . 6 3 8 7 Attach 140 | 6 1 . 11 8 . 1 9 5 . 13 2 23 4 8 15 . . 12 2 11 2 4 1 2 Detach 30 | . . . 5 . . 1 . 2 . . . 7 . . 2 . . 9 . . 1 1 1 1 Swap 83 | . 1 . 10 1 . . 10 10 . 7 1 6 5 7 12 . 1 2 1 9 . . . . Drop 199 | 2 . . 24 3 . . 29 13 1 9 1 23 8 16 26 5 4 10 14 6 . 1 . 4 Fire 706 | . 39 . 109 39 . 1 56 45 18 68 2 111 11 88 56 . . . 3 32 . . 27 1 Melee 3 | . . . . . . . 1 . . . . . . . . . 1 1 . . . . . . Ram . | . . . . . . . . . . . . . . . . . . . . . . . . . Kick 7 | . . . . . . . . . . . . . . . . . . . . 7 . . . . Crush . | . . . . . . . . . . . . . . . . . . . . . . . . . Escape Stasis 105 | . . . . . . . . 4 . 10 . 38 . 45 . . . . . 3 . . 5 . Rewire 92 | . . . . . . . . 60 . 29 . 2 . . . . . . 1 . . . . . Trap 2 | . . . . . . . . . . . . . . . . . . . . . . 2 . . Miscellaneous 41 | . . . . . . . . 8 . 9 . 8 . . . . . . . . . . . 16 Route ------- -11/Scrapyard -10/Materials (discovered 2 exits: *Mat / [*Min]) -10/Mines -9/Materials (discovered 4 exits: *Mat x3 / *Min) -9/Mines (discovered 2 exits: *Mat / *Exi) -9/Exiles -8/Mines -8/Materials (discovered 5 exits: *Fac x3 / Sto / Gar) -8/Garrison (discovered 3 exits: *Mat x3) -8/Materials (discovered 3 exits: *Fac x2 / Gar) -8/Garrison (discovered 2 exits: *Fac x2) -7/Factory -7/Garrison (discovered 3 exits: *Fac x3) -6/Factory -6/Garrison (discovered 3 exits: *Fac x3) -5/Factory (discovered 2 exits: *Fac / [*Upp]) -5/Waste -5/Factory -4/Factory -4/DSF -3/Research (discovered 3 exits: *Res x3) -2/Research -1/Access -1/Garrison -1/Access To Epsilon Eridani History --------- Turn | Location | Event 4 | -11/Scrapyard | Discovered new exit (range 16) 86 | -11/Scrapyard | Entered Materials 310 | -10/Materials | Build established: Mutant 377 | -10/Materials | Discovered new exit (range 13) 517 | -10/Materials | Discovered new exit (range 10) 638 | -10/Materials | Entered Mines 662 | -10/Mines | Discovered new exit (range 12) 715 | -10/Mines | Entered Materials 715 | -9/Materials | Evolved 2 slots: Utility x1, Weapon x1 1144 | -9/Materials | Discovered new exit (range 5) 1184 | -9/Materials | Build established: Scavenger-Tank 1816 | -9/Materials | Build established: Tank 1931 | -9/Materials | Discovered new exit (range 12) 2075 | -9/Materials | Identified exit to Materials 2084 | -9/Materials | Core integrity fell below 50% 2105 | -9/Materials | Lost 3 parts (1u2w) 2114 | -9/Materials | Loaded intel: 12 terminal locations 2144 | -9/Materials | Learned location of Zion (-6) 2228 | -9/Materials | Learned Storage emergency access door positions 2375 | -9/Materials | Identified exit to Mines 2540 | -9/Materials | Build established: Gunner 2594 | -9/Materials | Entered Mines 2697 | -9/Mines | Learned location of 1 exit from Materials 2743 | -9/Mines | Discovered exit to Materials (range 13) 2759 | -9/Mines | Received a Mining Laser from a helpful Derelict 2999 | -9/Mines | Assembled infested the area 3004 | -9/Mines | Assisted by a Guerilla fighting off Assembled 3033 | -9/Mines | Core integrity fell below 20% 3059 | -9/Mines | Lost 4 parts (1p1n2w) 3334 | -9/Mines | Build established: Mutant 3720 | -9/Mines | Deemed a non-threat by the Exiles lab entrance 3720 | -9/Mines | Discovered new exit (range 5) 3725 | -9/Mines | Entered Exiles 3759 | -9/Exiles | Met 8R-AWN 3814 | -9/Exiles | Met EX-HEX 3868 | -9/Exiles | Met EX-DEC 3925 | -9/Exiles | Build established: Scavenger-Mutant 4115 | -9/Exiles | Met EX-BIN 4130 | -9/Exiles | Aligned with FarCom system 4132 | -9/Exiles | Given EX-Vault access code 4164 | -9/Exiles | Opened EX-Vault 4174 | -9/Exiles | Found AWS/Autocannon 4177 | -9/Exiles | Found PSU Rigger 4181 | -9/Exiles | Found Cloak of Protection 4212 | -9/Exiles | Warned to stay clear of 0b10 Research branches 4300 | -9/Exiles | Discovered new exit (range 10) 4311 | -9/Exiles | Stole three prototypes: Cloak of Protection, PSU Rigger, AWS/Autocannon 4311 | -9/Exiles | Entered Mines 4348 | -8/Mines | Discovered exit to Materials (range 6) 4360 | -8/Mines | Entered Materials 4360 | -8/Materials | Evolved 2 slots: Propulsion x1, Utility x1 4361 | -8/Materials | Identified exit to Factory 4366 | -8/Materials | Identified exit to Storage 5052 | -8/Materials | Build established: Gunner 5810 | -8/Materials | Discovered exit to Factory (range 7) 6133 | -8/Materials | Learned Storage garrison access intel 6192 | -8/Materials | Learned location of Storage (-8) 6243 | -8/Materials | Learned Storage non-interactive machine intel 6305 | -8/Materials | Learned Storage emergency access door positions 6362 | -8/Materials | Identified exit to Garrison 6378 | -8/Materials | Learned Storage emergency access door positions 6391 | -8/Materials | Entered Garrison 6479 | -8/Garrison | Destroyed 7 combat bots 6480 | -8/Garrison | Lost 3 parts (1n2w) 6598 | -8/Garrison | Phase Generator disabled 6753 | -8/Garrison | Installed Relay Interface Framework 6877 | -8/Garrison | Triggered checkpoint 6889 | -8/Garrison | Triggered checkpoint 7149 | -8/Garrison | Rescued HV-R5K 7177 | -8/Garrison | Triggered checkpoint 7331 | -8/Garrison | Triggered checkpoint 7471 | -8/Garrison | Triggered checkpoint 7505 | -8/Garrison | Lost 4 allies 7507 | -8/Garrison | Triggered checkpoint 7541 | -8/Garrison | Lost 3 allies 7655 | -8/Garrison | Garrison Relay disabled 7837 | -8/Garrison | Triggered checkpoint 7883 | -8/Garrison | Learned Materials security intel 7895 | -8/Garrison | Garrison Relay disabled 7946 | -8/Garrison | Discovered new exit (range 68) 7946 | -8/Garrison | Discovered new exit (range 55) 7946 | -8/Garrison | Discovered new exit (range 12) 8008 | -8/Garrison | Entered Materials 8008 | -8/Materials | Accompanied by 3 allies (HV-R5K) 8402 | -8/Materials | Discovered exit to Factory (range 16) 8808 | -8/Materials | First assault squad dispatched 9041 | -8/Materials | Discovered exit to Factory (range 3) 9060 | -8/Materials | Identified exit to Garrison 9060 | -8/Materials | Entered Garrison 9060 | -8/Garrison | Accompanied by 1 ally (HV-R5K) 9168 | -8/Garrison | Triggered checkpoint 9342 | -8/Garrison | Garrison Relay disabled 9500 | -8/Garrison | Spotted B-75 Beast 9529 | -8/Garrison | Core integrity fell below 50% 9532 | -8/Garrison | Allies destroyed B-75 Beast 9559 | -8/Garrison | Lost 4 parts (1n1u2w) 9596 | -8/Garrison | Expanded RIF knowledge: Signal Jamming 9764 | -8/Garrison | Triggered checkpoint 9818 | -8/Garrison | Triggered checkpoint 9866 | -8/Garrison | Garrison Relay disabled 10100 | -8/Garrison | Build established: Bothacker-Tank 10135 | -8/Garrison | Expanded RIF knowledge: Robot Detection 10194 | -8/Garrison | Garrison Relay disabled 10274 | -8/Garrison | Discovered exit to Factory (range 15) 10479 | -8/Garrison | Lost 3 parts (1n2w) 10513 | -8/Garrison | Phase Generator disabled 10703 | -8/Garrison | Build established: Bothacker-Mutant 11016 | -8/Garrison | Triggered checkpoint 11022 | -8/Garrison | Triggered checkpoint 11191 | -8/Garrison | Discovered exit to Factory (range 12) 11235 | -8/Garrison | Entered Factory 11235 | -7/Factory | Accompanied by 1 ally 11235 | -7/Factory | Evolved 2 slots: Utility x2 11237 | -7/Factory | FarCom data flow suspended 11449 | -7/Factory | Identified exit to Garrison 11508 | -7/Factory | Entered Garrison 11508 | -7/Garrison | Accompanied by 1 ally 11528 | -7/Garrison | Build established: Bothacker-Gunner 11605 | -7/Garrison | Garrison Relay disabled 11608 | -7/Garrison | Triggered checkpoint 11724 | -7/Garrison | Triggered checkpoint 11854 | -7/Garrison | Triggered checkpoint 12123 | -7/Garrison | Phase Generator disabled 12137 | -7/Garrison | Spotted B-75 Beast 12186 | -7/Garrison | Triggered checkpoint 12246 | -7/Garrison | Lost 4 parts (1p2n1w) 12568 | -7/Garrison | Lost 3 parts (2n1w) 12803 | -7/Garrison | Build established: Bothacker-Mutant 12872 | -7/Garrison | Triggered checkpoint 12949 | -7/Garrison | Lost 3 parts (1n2w) 13032 | -7/Garrison | Garrison Relay disabled 13205 | -7/Garrison | System corruption reached 10% 13218 | -7/Garrison | Lost 4 allies 13253 | -7/Garrison | Discovered new exit (range 11) 13281 | -7/Garrison | Expanded RIF knowledge: Code Merge 13592 | -7/Garrison | Build established: Bothacker-Tank 13644 | -7/Garrison | Discovered new exit (range 10) 13686 | -7/Garrison | Garrison Relay disabled 13748 | -7/Garrison | Triggered checkpoint 13774 | -7/Garrison | Triggered checkpoint 13836 | -7/Garrison | Garrison Relay disabled 13929 | -7/Garrison | Discovered new exit (range 11) 13947 | -7/Garrison | Entered Factory 13947 | -6/Factory | Accompanied by 1 ally 13947 | -6/Factory | Evolved 2 slots: Utility x2 14145 | -6/Factory | Build established: Botlord-Gunner 14351 | -6/Factory | Identified exit to Garrison 14358 | -6/Factory | Entered Garrison 14358 | -6/Garrison | Accompanied by 1 ally 14430 | -6/Garrison | Triggered checkpoint 14453 | -6/Garrison | Expanded RIF knowledge: Watcher Feeds 14474 | -6/Garrison | Garrison Relay disabled 14530 | -6/Garrison | Triggered checkpoint 14558 | -6/Garrison | Garrison Relay disabled 14678 | -6/Garrison | Triggered checkpoint 14679 | -6/Garrison | Triggered checkpoint 14768 | -6/Garrison | Build established: Botlord-Tank 14775 | -6/Garrison | Discovered new exit (range 11) 14790 | -6/Garrison | Triggered checkpoint 14833 | -6/Garrison | Garrison Relay disabled 14859 | -6/Garrison | Phase Generator disabled 15034 | -6/Garrison | Triggered checkpoint 15054 | -6/Garrison | Triggered checkpoint 15179 | -6/Garrison | H-XX Assembler disabled 15222 | -6/Garrison | Discovered new exit (range 12) 15250 | -6/Garrison | Triggered checkpoint 15264 | -6/Garrison | Garrison Relay disabled 15297 | -6/Garrison | Build established: Commander-Tank 15301 | -6/Garrison | Lost 3 allies 15388 | -6/Garrison | Garrison Relay disabled 15443 | -6/Garrison | Discovered new exit (range 11) 15451 | -6/Garrison | Discovered new exit (range 7) 15451 | -6/Garrison | Discovered new exit (range 73) 15451 | -6/Garrison | Discovered new exit (range 87) 15525 | -6/Garrison | Entered Factory 15525 | -5/Factory | Accompanied by 12 allies 15525 | -5/Factory | Evolved 2 slots: Utility x2 15788 | -5/Factory | Discovered new exit (range 13) 15825 | -5/Factory | First assault squad dispatched 16034 | -5/Factory | Lost 12 allies 16081 | -5/Factory | P-70 Sage assimilated allied Disruptor 6a 16151 | -5/Factory | Identified exit to Factory 16440 | -5/Factory | Build established: Tank 16574 | -5/Factory | Lost 3 parts (1u2w) 16631 | -5/Factory | Discovered new exit (range 23) 17204 | -5/Factory | Manually triggered Chute Trap 17204 | -5/Factory | Sucked down chute 17204 | -5/Factory | Entered Waste 17205 | -5/Waste | Joined by Warlord forces that had cleared the area 17371 | -5/Waste | Discovered new exit (range 22) 17395 | -5/Waste | Identified exit to Factory 17503 | -5/Waste | Entered Factory 17503 | -5/Factory | Accompanied by 20 allies 17510 | -5/Factory | Build established: Assassin 17733 | -5/Factory | Discovered exit to Factory (range 16) 17761 | -5/Factory | Lost 4 allies 17864 | -5/Factory | Entered another Factory area 17864 | -4/Factory | Accompanied by 15 allies 17864 | -4/Factory | Evolved 2 slots: Propulsion x2 18000 | -4/Factory | Identified exit to DSF 18018 | -4/Factory | Entered DSF 18018 | -4/DSF | Accompanied by 15 allies 18034 | -4/DSF | Additional patrols routed to DSF 18096 | -4/DSF | Discovered new exit (range 22) 18122 | -4/DSF | Lost 7 allies 18151 | -4/DSF | Build established: Hacker-Tank 18195 | -4/DSF | Sterilization system engaged 18215 | -4/DSF | Ambient heat levels rising (+10) 18230 | -4/DSF | Ambient heat levels rising (+10) 18245 | -4/DSF | Ambient heat levels rising (+10) 18260 | -4/DSF | Ambient heat levels rising (+10) 18275 | -4/DSF | Ambient heat levels rising (+10) 18290 | -4/DSF | Ambient heat levels rising (+10) 18304 | -4/DSF | Identified exit to Research 18305 | -4/DSF | Ambient heat levels rising (+10) 18305 | -4/DSF | Entered Research 18305 | -3/Research | Accompanied by 2 allies 18305 | -3/Research | Evolved 2 slots: Power x1, Propulsion x1 18566 | -3/Research | Identified exit to Research 18582 | -3/Research | Found Prototype Device 18583 | -3/Research | Identified Exp. Thermal Defense Suite 18605 | -3/Research | Build established: Hacker-Skirmisher 18897 | -3/Research | Garrison activated, responded to threat 18908 | -3/Research | System corruption reached 10% 18971 | -3/Research | Lost 14 parts (2p5n3u4w) 19017 | -3/Research | Entered another Research area 19017 | -2/Research | Evolved 2 slots: Power x1, Utility x1 19038 | -2/Research | Identified exit to DSF 19042 | -2/Research | Lost 8 parts (5n2u1w) 19057 | -2/Research | Discovered new exit (range 10) 19060 | -2/Research | Identified exit to Access 19072 | -2/Research | Entered Access 19072 | -1/Access | Evolved 2 slots: Propulsion x2 19104 | -1/Access | Energy Cycler disabled 19172 | -1/Access | Identified exit to Garrison 19172 | -1/Access | Entered Garrison 19222 | -1/Garrison | Lost 6 parts (1p4n1u) 19289 | -1/Garrison | Spotted B-99 Colossus 19290 | -1/Garrison | Triggered checkpoint 19297 | -1/Garrison | Discovered new exit (range 16) 19302 | -1/Garrison | Identified exit to Access 19305 | -1/Garrison | Entered Access 19328 | -1/Access | Found Prototype Launcher 19328 | -1/Access | Identified Tesla Bomb Launcher 19330 | -1/Access | Found Tesla Bomb Launcher 19456 | -1/Access | Discovered new exit (range 6) 19457 | -1/Access | Identified exit to Surface 19457 | *** | Escaped! Last Messages --------------- 19330_ Acquired Tesla Bomb Launcher. 19332_ Acquired Adv. Shield Generator. 19334_ Dropped Xenon Bombardment Thruster. 19337_ Acquired Xenon Bombardment Thruster. 19339_ Dropped Xenon Bombardment Thruster. 19340_ Acquired Impulse Thruster Array. 19364_ GNWA:OHF25T,UBRANWF= 19422_ R-10 Processor collects Hvy. Machine Gun. 19423_ Dismantling Sealed Barrier with Plasma Cutter. 19453_ Sealed Barrier dismantled. 19456_ The Access Shell folds into the floor. 19456_ EXIT=FOUND 19457_ EXIT=IDENTIFIED: SURFACE Map ----- +----------------------------------------------------+ | ?????????????????????????????????????????????????? | | ?????????????????????????????????????????????????? | | ?????????????????????????????????????????????????? | | ?????????????????????????????????????????????????? | | ?????????????????????????????????????????????????? | | ?????????????????????????????????????????????????? | | ?????????????????????????????????????????????????? | | ??????????????????????????????????????? ?????????? | | ?????????????????????????????????????? ?????????? | | ?????????????????????????????????????? #????????? | | ?????????????????????????????????????? #????????? | | ?????????????????????????????????????? #????????? | | ?????????????????????????????????????? #????????? | | ?????????????????????????????????????? #????????? | | ?????????????????????????????????????? #????????? | | ?????????????????????????????????????? +????????? | | ?????????????????????????????????????? #????????? | | ?????????????????????????????????????? #????????? | | ?????????????????????????????????????# #????????? | | ?????????????????????????????????????# #????????? | | ????????????????????##########"####### #????????? | | ????????????????????" " #????????? | | ????????????????????" " #????????? | | ????????????????????" " #????????? | | ????????????????????" " #????????? | | ????????????????????" "@ #????????? | | ????????????????????" "" #????????? | | ????????????????????" #????????? | | ????????????????????" " #????????? | | ????????????????????" """" """ #????????? | | ????????????????????" """"T""" #????????? | | ????????????????????##########"####### #????????? | | ?????????????????????????????????????# #????????? | | ???????????????????????????######????# #????????? | | ???????????????????????????# ??# #????????? | | ???????????????????????????# # #????????? | | ???????????????????????????# + +????????? | | ???????????????????????????# # #????????? | | ???????????????????????????# ??# #????????? | | ???????????????????????????# ????# #????????? | | ???????????????????????????#== ??????# #????????? | | ???????????????????????????#=????????# #????????? | | ?????????????????????????????????????# #????????? | | ?????????????????????????????????????# #????????? | | ?????????????????????????????????????# #????????? | | ?????????????????????????????????????# #????????? | | ?????????????????????????????????????# #????????? | | ?????????????????????????????????????# #????????? | | ?????????????????????????????????????# #????????? | | ?????????????????????????????????????# #????????? | +----------------------------------------------------+ Best States ------------- Heat Dissipation 71 Energy Generation 39 Energy Capacity 390 Matter Stores 300 Matter Capacity 300 Sight Range 22 Robot Scan Range 16 Terrain Scan Density 10 Cloak Strength 5 Armor Coverage 450 Resistance: KI 30 Resistance: TH 30 Core Shielding 30 Utility Shielding 66 Phase Shifting 5 Evasion (%) 70 Targeting Accuracy 16 Melee Accuracy 8 Recoil Reduction 4 Offensive Hacking 10 Defensive Hacking 14 Relay Coupler Types 6 Relay Coupler Value 244 Authchip Count 3 Item Schematics ----------------- Hcp. Storage Unit | -9/Materials | Hacked Robot Schematics ------------------ None Fabricated ------------ Nothing Repaired ---------- Nothing Alien Tech Used ----------------- None Achievements -------------- Maximum Efficiency Challenges ------------ None Game ------ Seed HardcellGaussSpear Manual? 0 Play Time 02:33:23 Cumulative 275.9 hours Start 2025.09.09 @ 15:41:47 End 2025.09.10 @ 04:40:15 Sessions 3 Manual Loads 0 Difficulty Rogue Special Mode None Game No. 397 Rogue 397 Adventurer 0 Explorer 0 Win Type 0 Total 7 Types 5/0/1/1/0/0/0/0/0/0 Lore% 83 Gallery% 79 Achievement% 62 Wizard Run 0 Options --------- Layout 1 ASCII 0 Keyboard 0 Movement Mouse Keybinds 0 Fullscreen 1 Font 24/Smallcaps Map View 50x35 Zoom Use 0% Tactical HUD 1 Map Filters NONE Filters NONE Steam 1 RUN: c1214637-cb06-4ce7-bd02-7a115f233b7e